Cogmind - Beta 13 @@@ ROGUE MODE // 2024.04.16 @ 18:40:52 Player: Skysub Result: Escaped! Performance ------------- Evolutions (9) 4500 Regions Visited (21) 4200 Robots Destroyed (55) 275 Value Destroyed (2178) 2178 Prototype IDs (12) 240 Alien Tech Used (0) 0 Bonus (7060) 7060 TOTAL SCORE: 18453 Bonus ------- High Alert Combat Kills 64 Follower Combat Kills 1943 Entered DSFs 1000 Met Zhirov 300 Built Enhanced Grunts 300 A7 Reached Mainframe 300 Read Decrypted Archives 300 Win 3000 Friendly Fire -147 Cogmind --------- Core Integrity 1449/1600 Matter 76/300 Energy 396/440 System Corruption 0% Temperature Cool (10) Movement Flying (29) Location To Epsilon Eridani Parts ------- > --- POWER (3) -------- Quantum Reactor Light Quantum Reactor > --- PROPULSION (8) --- Impulse Thruster Q-thruster Q-thruster Q-thruster Impulse Thruster Array > --- UTILITY (10) ----- Advanced Heat Sink Advanced Weight Redist. System Advanced Visual Processing Unit Improved Signal Interpreter Advanced Targeting Computer Advanced ECM Suite Hacking Suite System Shield > --- WEAPON (4) ------- Enhanced Gauss Cannon > --- INVENTORY (5) ---- Micro Antimatter Reactor Phase Gun Advanced Datajack Peak State ------------ > --- POWER ------------ Micro Antimatter Reactor Quantum Reactor Light Quantum Reactor > --- PROPULSION ------- Impulse Thruster Field Propulsion Array Q-thruster Q-thruster Q-thruster Impulse Thruster Array > --- UTILITY ---------- Advanced Heat Sink Advanced Weight Redist. System Advanced Visual Processing Unit Improved Signal Interpreter Advanced Targeting Computer Advanced ECM Suite Hacking Suite Hacking Suite Advanced Hacking Suite System Shield > --- WEAPON ----------- Phase Gun Enhanced Quantum Rifle Enhanced Gauss Cannon Fusion Bomb Launcher > --- INVENTORY -------- Advanced Datajack [Rating: 153] Favorites ----------- Power Light Deuterium Engine Engine Light Deuterium Engine Power Core Light Nuclear Core Reactor Light Antimatter Reactor Propulsion VTOL Module Leg Aluminum Leg Hover Unit Gyrokinetic Inverter Flight Unit VTOL Module Utility Hacking Suite Device Experimental Sensor Array Storage Small Storage Unit Processor Improved Signal Interpreter Hackware Hacking Suite Protection Improved Medium Armor Plating Weapon Autogun Energy Gun Precision Shock Rifle Ballistic Gun Autogun Ballistic Cannon Enhanced Gauss Cannon Launcher Mini Grenade Launcher Special Weapon Mining Laser Slashing Weapon Scythe Special Melee Weapon Advanced Datajack Build | -11 -10 -10 -10 -9 -8 -7 -7 -7 -6 -6 -5 -4 -4 -4 -4 -4 -3 -3 -2 -2 -1 ------- Run | Yrd Mat Min Exi Min Mat Fac Low Low Fac DSF Fac Fac Ext Cet Arc Hub Res Arm Res DSF Acc Slots Evolved 18 | . . . . . 4 2 . . 2 . 2 2 . . . . 2 . 2 . 2 Power 2 | . . . . . . . . . . . 1 . . . . . . . . . 1 Propulsion 6 | . . . . . 2 . . . 1 . . 1 . . . . . . 2 . . Utility 8 | . . . . . 2 2 . . 1 . 1 1 . . . . 1 . . . . Weapon 2 | . . . . . . . . . . . . . . . . . 1 . . . 1 Parts Attached 154 | 7 2 1 2 11 7 20 2 . 8 . 12 3 17 3 1 8 15 20 . 6 9 Power 23 | 1 . 1 . 2 . 3 . . 2 . 3 . 3 . . 1 2 3 . . 2 Engine 9 | 1 . . . 1 . 2 . . 2 . . . 2 . . . 1 . . . . Core 8 | . . 1 . 1 . 1 . . . . 3 . 1 . . . 1 . . . . Reactor 6 | . . . . . . . . . . . . . . . . 1 . 3 . . 2 Propulsion 36 | 2 . . . 2 3 4 . . 2 . 2 1 1 . 1 4 4 5 . 5 . Treads . | . . . . . . . . . . . . . . . . . . . . . . Leg 4 | 2 . . . . . . . . . . . . . . 1 1 . . . . . Wheel . | . . . . . . . . . . . . . . . . . . . . . . Hover 5 | . . . . . . 1 . . . . . . . . . 1 3 . . . . Flight 27 | . . . . 2 3 3 . . 2 . 2 1 1 . . 2 1 5 . 5 . Utility 40 | 2 . . 1 3 2 4 . . 4 . 4 1 4 1 . 1 6 4 . . 3 Device 21 | 1 . . . 3 2 . . . 2 . 2 . 3 1 . . 1 4 . . 2 Storage 1 | 1 . . . . . . . . . . . . . . . . . . . . . Processor 6 | . . . . . . 1 . . 1 . 1 . . . . . 3 . . . . Hackware 9 | . . . 1 . . 1 . . 1 . 1 1 1 . . 1 1 . . . 1 Protection 3 | . . . . . . 2 . . . . . . . . . . 1 . . . . Artifact . | . . . . . . . . . . . . . . . . . . . . . . Weapon 55 | 2 2 . 1 4 2 9 2 . . . 3 1 9 2 . 2 3 8 . 1 4 Energy Gun 12 | . . . . . . 2 . . . . 2 . . . . . 2 4 . . 2 Energy Cannon . | . . . . . . . . . . . . . . . . . . . . . . Ballistic Gun 17 | 2 2 . 1 2 1 4 . . . . 1 1 3 . . . . . . . . Ballistic Cannon 2 | . . . . . . . . . . . . . . . . . 1 . . . 1 Launcher 10 | . . . . 2 . . 1 . . . . . . 1 . 2 . 2 . 1 1 Special Weapon 1 | . . . . . 1 . . . . . . . . . . . . . . . . Impact Weapon . | . . . . . . . . . . . . . . . . . . . . . . Slashing Weapon 8 | . . . . . . 3 1 . . . . . 3 1 . . . . . . . Piercing Weapon . | . . . . . . . . . . . . . . . . . . . . . . Special Melee Weapon 5 | . . . . . . . . . . . . . 3 . . . . 2 . . . Unidentified Prototypes 12 | . . . . 1 . 3 . . 1 . 2 . . . 1 1 3 . . . . Parts Lost 40 | . . . . 3 . . . . 1 3 1 . 5 4 6 3 1 4 . 4 5 Power 5 | . . . . 1 . . . . . . . . . 1 1 1 . . . 1 . Propulsion 16 | . . . . 1 . . . . . 2 . . 3 2 2 . 1 2 . 2 1 Utility 10 | . . . . . . . . . 1 1 1 . 1 . 1 1 . 2 . . 2 Weapon 9 | . . . . 1 . . . . . . . . 1 1 2 1 . . . 1 2 Highest Loss Streak 6 | . . . . 2 . . . . 1 3 1 . 3 4 6 3 1 3 . 4 4 To Critical Strikes 1 | . . . . . . . . . . . . . . 1 . . . . . . . Average Slot Usage (%) 90 | . 100 99 100 95 100 98 100 100 98 100 82 90 89 74 73 67 84 85 65 58 81 Engine 3 | . 14 8 . 4 . 1 7 7 5 6 5 5 3 5 5 . 3 . . . . Core 3 | . . 5 14 7 9 5 . . . . 3 5 5 . . . . 2 . . . Leg 6 | . 28 28 28 3 . . . . . . . . . . . 9 3 . . . . Hover 1 | . . . . . . . . . . . . . . . . 4 10 2 . . . Flight 17 | . . . . 23 36 30 30 30 33 33 24 27 25 10 10 1 8 13 13 12 23 Device 17 | . 14 14 9 10 27 23 23 23 19 20 22 21 19 21 21 20 9 13 4 4 11 Storage 2 | . 14 14 14 3 . . . . . . . . . . . . . . . . . Processor 5 | . . . . . . 6 7 7 6 6 2 5 5 5 5 5 16 14 13 13 12 Hackware 13 | . . . 4 14 9 14 15 15 20 20 15 15 19 21 21 21 20 19 17 17 13 Energy Gun 2 | . . . . . . 6 5 . . . . 5 3 . . . 4 5 4 1 7 Ballistic Gun 7 | . 28 28 28 24 12 1 . . . . . 5 4 . . . . . . . . Launcher 1 | . . . . 1 . . 1 7 6 6 . . . 4 5 . . 1 4 4 . Slashing Weapon 2 | . . . . . . 5 6 7 6 6 4 . . 4 5 . . . . . . Naked Turns . | . . . . . . . . . . . . . . . . . . . . . . Heaviest Build 66 | 15 17 17 17 17 16 19 17 14 18 14 31 31 31 31 19 23 43 53 41 47 66 Greatest Support 71 | 20 20 20 20 20 17 23 17 17 25 15 33 39 39 38 37 62 59 59 47 71 71 Greatest Overweight (x) 4 | . . . . . . 1 . . . . . . . . . 1 3 4 . . . Average Overweight (x) . | . . . . . . . . . . . . . . . . . . . . . . Largest Inventory Capacity 8 | 8 8 8 8 8 5 5 5 5 5 5 5 5 5 5 5 5 5 5 5 5 5 Average Capacity 5 | 7 8 8 8 5 5 5 5 5 5 5 5 5 5 5 5 5 5 5 5 5 5 Most Carried 8 | 1 8 8 8 8 5 5 5 5 5 5 5 5 5 5 5 5 5 5 5 5 4 Average Carried 5 | . 7 7 7 5 2 4 5 5 4 4 4 4 4 4 5 4 3 4 5 4 2 Final Capacity 8 | 8 8 8 8 5 5 5 5 5 5 5 5 5 5 5 5 5 5 5 5 5 5 Final Carried 8 | 1 8 8 8 5 5 5 5 5 5 5 5 5 5 5 5 4 4 5 5 5 3 Class Distribution -------------------- 45% | Hacker-Sprinter 16% | Mutant 12% | Hacker-Mutant 11% | Hacker-Scout 10% | Commander-Mutant 4% | Sprinter Dominant Class ---------------- Mutant | -10/Materials Mutant | -10/Mines Commander-Mutant | -10/Exiles Sprinter | -9/Mines Sprinter | -8/Materials Hacker-Sprinter | -7/Factory Hacker-Sprinter | -7/Lower Caves Hacker-Sprinter | -7/Lower Caves Hacker-Sprinter | -6/Factory Hacker-Sprinter | -6/DSF Hacker-Sprinter | -5/Factory Hacker-Sprinter | -4/Factory Hacker-Sprinter | -4/Extension Commander-Mutant | -4/Cetus Hacker-Mutant | -4/Archives Hacker-Mutant | -4/Hub_04(d) Hacker-Scout | -3/Research Hacker-Scout | -3/Armory Hacker-Mutant | -2/Research Hacker-Mutant | -2/DSF Hacker-Sprinter | -1/Access Resources | -11 -10 -10 -10 -9 -8 -7 -7 -7 -6 -6 -5 -4 -4 -4 -4 -4 -3 -3 -2 -2 -1 ----------- Run | Yrd Mat Min Exi Min Mat Fac Low Low Fac DSF Fac Fac Ext Cet Arc Hub Res Arm Res DSF Acc Matter Collected 2281 | 286 68 178 . 237 30 165 53 97 80 . 119 56 248 100 19 20 44 468 . 5 8 Remotely . | . . . . . . . . . . . . . . . . . . . . . . Salvage Created 2569 | 41 80 216 . 137 30 220 55 . . . 262 160 579 . . 101 122 503 . 63 . Parts 135 | 6 5 13 . 6 3 16 4 . . . 9 7 20 . . 10 3 31 . 2 . Haulers Intercepted 6 | . 1 . . . . 1 . . . . 2 1 . . . . 1 . . . . Recyclers Shooed 2 | 1 . . . . . . . . . . . . . . . . 1 . . . . Parts Field Recycled . | . . . . . . . . . . . . . . . . . . . . . . Retrieved Matter . | . . . . . . . . . . . . . . . . . . . . . . Parts Self-Destructed 9 | . . . . . . . 9 . . . . . . . . . . . . . . Prevented 1 | . . . . . . . . 1 . . . . . . . . . . . . . Kills | -11 -10 -10 -10 -9 -8 -7 -7 -7 -6 -6 -5 -4 -4 -4 -4 -4 -3 -3 -2 -2 -1 ------- Run | Yrd Mat Min Exi Min Mat Fac Low Low Fac DSF Fac Fac Ext Cet Arc Hub Res Arm Res DSF Acc Combat Hostiles Destroyed 42 | . . 5 . 10 . . 4 . . . . . 7 . . 5 2 9 . . . Melee 1 | . . . . . . . . . . . . . 1 . . . . . . . . Guns 17 | . . 5 . 4 . . 1 . . . . . 4 . . . . 3 . . . Cannons 3 | . . . . . . . . . . . . . . . . . 2 1 . . . AOE 19 | . . . . 6 . . 3 . . . . . . . . 5 . 5 . . . Classes Destroyed 12 | 1 1 2 . 2 1 1 . . . . . . 3 . . . . 1 . . . Builder 2 | . . . . . . . . . . . . . 1 . . 1 . . . . . Tunneler 3 | 2 1 . . . . . . . . . . . . . . . . . . . . Hauler 6 | . 1 . . . . 1 . . . . 2 1 . . . . 1 . . . . Recycler 2 | . . . . . . 2 . . . . . . . . . . . . . . . Watcher 6 | . . . . . 1 1 . . . . 1 1 . 1 . 1 . . . . . Swarmer 14 | . . 1 . . . . 4 . . . . . . . . 5 2 2 . . . Saboteur 1 | . . . . . . . . . . . . . . . . . . 1 . . . Grunt 13 | . . 4 . 3 . . . . . . . . 3 . . . . 3 . . . Brawler 2 | . . . . 1 . . . . . . . . . . . . . 1 . . . Sentry 2 | . . . . . . . . . . . . . 2 . . . . . . . . Programmer 3 | . . . . . . . . . . . . . 1 . . . . 2 . . . Assembled 6 | . . . . 6 . . . . . . . . . . . . . . . . . Savage 1 | . . . . . . . . . . . . . 1 . . . . . . . . Best Kill Streak 7 | 2 1 2 . 6 1 1 4 . . . 2 2 2 1 . 7 2 4 . . . Combat Bots Only 6 | . . 2 . 6 . . 4 . . . . . 2 . . 5 2 4 . . . Max Kills in Single Turn 4 | 1 1 1 . 3 1 1 2 . . . 1 1 1 1 . 4 1 2 . . . Gunslinging . | . . . . . . . . . . . . . . . . . . . . . . Exploded 3 | . . . . 3 . . 2 . . . . . . . . 3 . 2 . . . Melee 1 | . . . . . . . . . . . . . 1 . . . . . . . . Uniques/NPCs Destroyed . | . . . . . . . . . . . . . . . . . . . . . . Combat | -11 -10 -10 -10 -9 -8 -7 -7 -7 -6 -6 -5 -4 -4 -4 -4 -4 -3 -3 -2 -2 -1 -------- Run | Yrd Mat Min Exi Min Mat Fac Low Low Fac DSF Fac Fac Ext Cet Arc Hub Res Arm Res DSF Acc Hostile Shots Fired 368 | . 4 37 . 16 4 . 10 . 18 3 . 2 28 24 3 39 18 74 . 11 77 Missed 156 | . 4 10 . 5 4 . 3 . 8 1 . 1 15 7 . 15 5 29 . 5 44 Damage Taken 5254 | . . 367 . 255 . 41 138 . 57 115 36 20 322 418 559 583 279 918 . 477 669 Core 1582 | . . 51 . 24 . . 43 . 18 17 . . 24 140 403 152 60 246 . 253 151 Absorbed by Shields 87 | . . . . . . . . . . . . . 21 66 . . . . . . . Regen/Repaired (Parts) 79 | . . . . . . . . . 56 . 23 . . . . . . . . . . Core Remaining (%) 84 | 100 . . . 70 100 . . 93 . 95 100 . . . . 37 . 76 . 82 90 Volleys Fired 165 | 4 5 21 . 15 9 4 3 . . . 3 9 23 6 . 6 9 37 . 2 9 Largest 3 | 2 2 2 . 2 2 2 2 . . . 2 2 2 2 . 1 3 3 . 2 1 Hottest 239 | 40 46 46 . 46 100 83 85 . . . 88 88 88 76 . 43 239 239 . 104 57 Shots Fired 272 | 8 10 42 . 22 12 5 6 . . . 4 18 35 11 . 6 23 58 . 3 9 Gun 194 | 8 10 42 . 17 6 5 3 . . . 4 18 35 6 . . 14 26 . . . Cannon 45 | . . . . . . . . . . . . . . . . . 9 28 . . 8 Launcher 27 | . . . . 5 . . 3 . . . . . . 5 . 6 . 4 . 3 1 Special 6 | . . . . . 6 . . . . . . . . . . . . . . . . Kinetic 167 | 8 10 42 . 17 6 1 . . . . 1 9 22 6 . . 9 28 . . 8 Thermal 46 | . . . . . 6 . . . . . . . . . . . 14 26 . . . Explosive 24 | . . . . 5 . . 3 . . . . . . 5 . 6 . 1 . 3 1 Electromagnetic 35 | . . . . . . 4 3 . . . 3 9 13 . . . . 3 . . . Robot Hit Streak 11 | 3 1 4 . 4 3 5 1 . . . 4 9 10 4 . 2 7 11 . . . Robot Miss Streak 5 | 1 5 3 . 4 1 . 3 . . . . 3 2 3 . 2 2 4 . . . Penetration Max 1 | . . . . . . . . . . . . . 1 1 . . . . . . . Secondary Targets 1 | . . 1 . . . . . . . . . . . . . . . . . . . Max Gunslinging Chain 1 | . . 1 . . . . . . . . . . . . . . . . . . . Shots Hit Robots 187 | 4 2 23 . 9 4 8 2 . . . 8 13 49 9 . 4 16 36 . . . Core Hits 138 | 2 2 12 . 15 2 4 5 . . . 5 4 13 19 . 11 5 30 . 8 1 Critical Kills 3 | . . . . . . . . . . . . 1 2 . . . . . . . . Critical Parts Destroyed . | . . . . . . . . . . . . . . . . . . . . . . Critical Strikes 11 | . . . . . . 2 . . . . 1 1 2 1 . . 1 3 . . . Burn 1 | . . . . . . . . . . . . . . . . . . 1 . . . Destroy 3 | . . . . . . . . . . . . 1 2 . . . . . . . . Blast 3 | . . . . . . . . . . . . . . . . . 1 2 . . . Sever 4 | . . . . . . 2 . . . . 1 . . 1 . . . . . . . Melee Attacks 54 | . . . . . . 6 . . 7 . 7 . 29 3 . . . 2 . . . Impact . | . . . . . . . . . . . . . . . . . . . . . . Slashing 28 | . . . . . . 6 . . 7 . 7 . 5 3 . . . . . . . Piercing . | . . . . . . . . . . . . . . . . . . . . . . Sneak Attacks 29 | . . . . . . 2 . . . . 1 . 24 . . . . 2 . . . Combat Hostiles 2 | . . . . . . . . . . . . . 2 . . . . . . . . Follow-up Attacks . | . . . . . . . . . . . . . . . . . . . . . . Damage Inflicted 7662 | 53 33 368 . 674 54 302 317 . . . 290 300 717 942 . 707 552 1540 . 706 107 Guns 2713 | 53 33 341 . 170 54 97 34 . . . 74 300 657 117 . . 306 477 . . . Cannons 783 | . . . . . . . . . . . . . . . . . 244 539 . . . Explosions 3577 | . . . . 504 . . 283 . . . . . . 746 . 707 . 524 . 706 107 Melee 560 | . . . . . . 205 . . . . 216 . 60 79 . . . . . . . Ramming 29 | . . 27 . . . . . . . . . . . . . . 2 . . . . Kinetic 2165 | 53 33 341 . 170 54 . . . . . . 156 458 117 . . 244 539 . . . Thermal 872 | . . . . . . . 89 . . . . . . . . . 306 477 . . . Explosive 3309 | . . . . 504 . . 194 . . . . . . 746 . 707 . 345 . 706 107 Electromagnetic 727 | . . . . . . 97 34 . . . 74 144 199 . . . . 179 . . . Impact . | . . . . . . . . . . . . . . . . . . . . . . Slashing 560 | . . . . . . 205 . . . . 216 . 60 79 . . . . . . . Piercing . | . . . . . . . . . . . . . . . . . . . . . . Highest Corruption 6 | . . . . . . . . . . . 4 . . . . 6 . 3 . . . Average Corruption 2 | . . . . . . . . . . . 1 . . . . 5 . 2 . . . Corruption Purged . | . . . . . . . . . . . . . . . . . . . . . . Corruption Blocked . | . . . . . . . . . . . . . . . . . . . . . . Effects 5 | . . . . . . . . . . . 3 . . . . 1 . 1 . . . Heat Flow Errors 1 | . . . . . . . . . . . 1 . . . . . . . . . . Energy Discharges 1 | . . . . . . . . . . . . . . . . 1 . . . . . Data Loss (minor) 1 | . . . . . . . . . . . . . . . . . . 1 . . . Data Loss (major) 2 | . . . . . . . . . . . 2 . . . . . . . . . . Overload Shots . | . . . . . . . . . . . . . . . . . . . . . . Overflow Damage 87 | . . . . 46 . . 1 . . . 33 . . 2 . . . . . 5 . Projectiles . | . . . . . . . . . . . . . . . . . . . . . . Explosions 54 | . . . . 46 . . 1 . . . . . . 2 . . . . . 5 . Melee 33 | . . . . . . . . . . . 33 . . . . . . . . . . Knockbacks 5 | . . 1 . . . . . . . . . . . . . . 1 3 . . . Impact 1 | . . 1 . . . . . . . . . . . . . . . . . . . Kinetic 4 | . . . . . . . . . . . . . . . . . 1 3 . . . Secondary . | . . . . . . . . . . . . . . . . . . . . . . Self-Inflicted Damage 233 | . . . . 83 . . 36 . . . . . . . . 90 1 23 . . . Shots 8 | . . . . 2 . . 1 . . . . . . . . 2 . 3 . . . Rammed 1 | . . . . . . . . . . . . . . . . . 1 . . . . Targets Rammed 5 | . . 4 . . . . . . . . . . . . . . 1 . . . . Kicked 4 | . . 4 . . . . . . . . . . . . . . . . . . . Crushed . | . . . . . . . . . . . . . . . . . . . . . . Highest Temperature 521 | . 12 60 . 60 64 24 44 . . . 219 123 160 . . . 452 521 . . 9 Average Temperature 86 | . 5 16 . 23 23 10 22 . . . 76 45 47 . . . 173 152 . . 7 Received Heat Transfer 585 | . . 135 . 119 . . . . . . . . 113 53 27 . . 93 . . 45 Effects 5 | . . . . . . . . . . . . . . . . . 1 4 . . . Shutdowns 2 | . . . . . . . . . . . . . . . . . 1 1 . . . Interference 2 | . . . . . . . . . . . . . . . . . . 2 . . . Matter Decay 1 | . . . . . . . . . . . . . . . . . . 1 . . . Siege Activations . | . . . . . . . . . . . . . . . . . . . . . . Robots Corrupted 2 | . . . . . . . . . . . . . 2 . . . . . . . . Combat Hostiles 2 | . . . . . . . . . . . . . 2 . . . . . . . . Parts Fried 3 | . . . . . . . . . . . . 1 2 . . . . . . . . Impact Corruptions . | . . . . . . . . . . . . . . . . . . . . . . Robots Melted . | . . . . . . . . . . . . . . . . . . . . . . Combat Hostiles . | . . . . . . . . . . . . . . . . . . . . . . Parts Melted 4 | . . . . . . . . . . . . . . . . . . 4 . . . Heat Transferred 1173 | . . . . . . . 100 . . . . . . . . . 407 666 . . . Parts Sabotaged . | . . . . . . . . . . . . . . . . . . . . . . Parts Stolen . | . . . . . . . . . . . . . . . . . . . . . . Parts Stripped . | . . . . . . . . . . . . . . . . . . . . . . Power Chain Reactions 1 | . . . . . . . 1 . . . . . . . . . . . . . . Alert | -11 -10 -10 -10 -9 -8 -7 -7 -7 -6 -6 -5 -4 -4 -4 -4 -4 -3 -3 -2 -2 -1 ------- Run | Yrd Mat Min Exi Min Mat Fac Low Low Fac DSF Fac Fac Ext Cet Arc Hub Res Arm Res DSF Acc Peak Influence 678 | 10 78 376 . 141 97 75 . . 28 19 191 171 437 391 251 337 212 678 355 324 369 Initial 355 | . 6 30 . . 54 44 . . . 19 . 93 83 232 76 72 117 7 355 266 194 Average 147 | 3 32 158 . 109 59 39 . . 12 17 37 116 236 375 175 129 127 246 355 307 256 Maximum Alert Level 2 | . . 1 . . . . . . . . . . 2 1 1 1 1 2 1 1 1 Low Security (%) 74 | 100 100 88 . 100 100 100 . . 100 100 100 100 47 1 44 87 94 50 . . 28 Level 1 23 | . . 11 . . . . . . . . . . 36 98 55 12 5 40 100 100 71 Level 2 2 | . . . . . . . . . . . . . 16 . . . . 9 . . . Level 3 . | . . . . . . . . . . . . . . . . . . . . . . Level 4 . | . . . . . . . . . . . . . . . . . . . . . . Level 5 . | . . . . . . . . . . . . . . . . . . . . . . High Security . | . . . . . . . . . . . . . . . . . . . . . . Max Security . | . . . . . . . . . . . . . . . . . . . . . . Squads Dispatched 17 | . 2 1 . . . 2 . . 1 1 2 1 1 . . 1 1 2 . 1 1 Investigation 6 | . 1 1 . . . 1 . . 1 . 1 . . . . . . . . . 1 Extermination 1 | . . . . . . . . . . . . . . . . 1 . . . . . Reinforcement 10 | . 1 . . . . 1 . . . 1 1 1 1 . . . 1 2 . 1 . Assault . | . . . . . . . . . . . . . . . . . . . . . . Garrison . | . . . . . . . . . . . . . . . . . . . . . . Intercept . | . . . . . . . . . . . . . . . . . . . . . . Searches Triggered . | . . . . . . . . . . . . . . . . . . . . . . Construction Impeded . | . . . . . . . . . . . . . . . . . . . . . . Haulers Reinforced 1 | . . . . . . 1 . . . . . . . . . . . . . . . Active Scanning Responses . | . . . . . . . . . . . . . . . . . . . . . . Cargo Convoy Interrupts . | . . . . . . . . . . . . . . . . . . . . . . Stealth | -11 -10 -10 -10 -9 -8 -7 -7 -7 -6 -6 -5 -4 -4 -4 -4 -4 -3 -3 -2 -2 -1 --------- Run | Yrd Mat Min Exi Min Mat Fac Low Low Fac DSF Fac Fac Ext Cet Arc Hub Res Arm Res DSF Acc Distress Signals 12 | . . . . . . . . . . . . . 2 1 . 2 1 4 . . 2 Communications Jammed 89 | . . . . . 5 1 . . . . . . 9 55 . 7 . 12 . . . Distress Signals 88 | . . . . . 5 . . . . . . . 9 55 . 7 . 12 . . . Times Spotted 160 | . 5 12 . 18 3 1 3 . 1 4 1 3 21 5 12 16 7 27 . 3 18 Peak Tracking Total 15 | . 3 3 . 5 2 . 3 . 1 5 1 1 4 5 9 11 4 15 . 3 7 Tactical Retreats 13 | . . 1 . 2 . . . . 1 . . . 2 . . 2 . 2 . . 3 Traps | -11 -10 -10 -10 -9 -8 -7 -7 -7 -6 -6 -5 -4 -4 -4 -4 -4 -3 -3 -2 -2 -1 ------- Run | Yrd Mat Min Exi Min Mat Fac Low Low Fac DSF Fac Fac Ext Cet Arc Hub Res Arm Res DSF Acc Traps Triggered 12 | . 1 . . . . 1 . . 2 2 1 . 2 . . . 1 . . 1 1 Indirectly . | . . . . . . . . . . . . . . . . . . . . . . Trap Hack Attempts . | . . . . . . . . . . . . . . . . . . . . . . Triggered . | . . . . . . . . . . . . . . . . . . . . . . Disarmed . | . . . . . . . . . . . . . . . . . . . . . . Reprogrammed . | . . . . . . . . . . . . . . . . . . . . . . Reused . | . . . . . . . . . . . . . . . . . . . . . . Traps Extracted . | . . . . . . . . . . . . . . . . . . . . . . Installed . | . . . . . . . . . . . . . . . . . . . . . . Triggered 1 | . . . . . . . . 1 . . . . . . . . . . . . . Machines | -11 -10 -10 -10 -9 -8 -7 -7 -7 -6 -6 -5 -4 -4 -4 -4 -4 -3 -3 -2 -2 -1 ---------- Run | Yrd Mat Min Exi Min Mat Fac Low Low Fac DSF Fac Fac Ext Cet Arc Hub Res Arm Res DSF Acc Machines Disabled 17 | . 1 . . . . . . . . . 4 1 4 . 1 1 1 3 . . 1 Max in Single Turn 4 | . 1 . . . . . . . . . 4 1 3 . . 1 1 1 . . 1 Garrison Access 1 | . . . . . . . . . . . . . . . . 1 . . . . . Energy Cycler 1 | . . . . . . . . . . . . . 1 . . . . . . . . Machines Repaired . | . . . . . . . . . . . . . . . . . . . . . . Machines Dismantled . | . . . . . . . . . . . . . . . . . . . . . . Machines Sabotaged 1 | . . 1 . . . . . . . . . . . . . . . . . . . Overloaded Fab Kills . | . . . . . . . . . . . . . . . . . . . . . . Hacking | -11 -10 -10 -10 -9 -8 -7 -7 -7 -6 -6 -5 -4 -4 -4 -4 -4 -3 -3 -2 -2 -1 --------- Run | Yrd Mat Min Exi Min Mat Fac Low Low Fac DSF Fac Fac Ext Cet Arc Hub Res Arm Res DSF Acc Machines Accessed 54 | . 4 1 . . 2 4 . . 6 . 6 . 7 2 1 6 4 3 3 . 5 Terminals 35 | . 3 1 . . 2 2 . . 2 . 2 . 6 2 . 5 2 2 2 . 4 Fabricators 4 | . . . . . . 1 . . 1 . 1 . . . . . . 1 . . . Repair Stations 2 | . . . . . . . . . 1 . 1 . . . . . . . . . . Recycling Units 6 | . 1 . . . . . . . 1 . 1 . 1 . . . 1 . 1 . . Scanalyzers 3 | . . . . . . 1 . . 1 . . . . . . . 1 . . . . Garrison Access 3 | . . . . . . . . . . . 1 . . . . 1 . . . . 1 Total Hacks 138 | . 8 3 . . 4 10 . . 18 . 15 . 11 3 22 12 10 9 5 . 8 Successful 85 | . 3 2 . . . 7 . . 9 . 7 . 8 3 22 7 6 7 2 . 2 Failed 53 | . 5 1 . . 4 3 . . 9 . 8 . 3 . . 5 4 2 3 . 6 Catastrophic 11 | . 2 . . . 2 1 . . . . 1 . 1 . . 1 . . 1 . 2 Database Lockouts . | . . . . . . . . . . . . . . . . . . . . . . Manual 25 | . 3 2 . . 1 4 . . 3 . 2 . . 1 . 4 3 . 2 . . Terminals 79 | . 6 3 . . 4 6 . . 6 . 6 . 10 3 . 11 5 8 4 . 7 Fabricators 11 | . . . . . . 2 . . 5 . 3 . . . . . . 1 . . . Repair Stations 5 | . . . . . . . . . 3 . 2 . . . . . . . . . . Recycling Units 11 | . 2 . . . . . . . 2 . 2 . 1 . . . 3 . 1 . . Scanalyzers 6 | . . . . . . 2 . . 2 . . . . . . . 2 . . . . Garrison Access 4 | . . . . . . . . . . . 2 . . . . 1 . . . . 1 Terminal Hacks 59 | . 1 1 . . . 3 . . 3 . 1 . 7 3 22 6 3 6 1 . 2 Record 24 | . . . . . . . . . . . . . . 2 22 . . . . . . Part Schematic 1 | . . . . . . 1 . . . . . . . . . . . . . . . Robot Analysis 1 | . . . . . . . . . . . . . . . . . . 1 . . . Open Door 7 | . . . . . . . . . . . . . 5 1 . . . . . . 1 Open DSF 2 | . . . . . . . . . 1 . . . . . . . . . 1 . . Level Access Points 3 | . . . . . . . . . . . . . . . . . 1 1 . . 1 Branch Access Points 3 | . . . . . . 1 . . . . . . . . . 1 1 . . . . Emergency Access Points 2 | . . . . . . . . . . . . . . . . 1 . 1 . . . Terminal Index 1 | . . . . . . . . . . . . . . . . 1 . . . . . Fabricator Index 1 | . . . . . . 1 . . . . . . . . . . . . . . . Alert Level 2 | . . . . . . . . . . . . . . . . 1 1 . . . . Unreport Threat 1 | . . . . . . . . . . . . . . . . . . 1 . . . Locate Traps 1 | . . . . . . . . . . . . . 1 . . . . . . . . Dispatch Records 1 | . . . . . . . . . . . . . . . . . . 1 . . . Security Status 1 | . . . . . . . . . . . . . . . . . . 1 . . . Recall Investigation 2 | . 1 . . . . . . . . . 1 . . . . . . . . . . Recall Reinforcements 1 | . . . . . . . . . . . . . 1 . . . . . . . . Hauler Manifests 1 | . . . . . . . . . 1 . . . . . . . . . . . . Registered Prototypes 1 | . . . . . . . . . . . . . . . . 1 . . . . . Zone Layout 3 | . . 1 . . . . . . 1 . . . . . . 1 . . . . . Fabricator Hacks 6 | . . . . . . 2 . . 1 . 2 . . . . . . 1 . . . Network Status 1 | . . . . . . . . . . . . . . . . . . 1 . . . Load Schematic 3 | . . . . . . 1 . . 1 . 1 . . . . . . . . . . Build 2 | . . . . . . 1 . . . . 1 . . . . . . . . . . Repair Station Hacks 4 | . . . . . . . . . 2 . 2 . . . . . . . . . . Scan Component 2 | . . . . . . . . . 1 . 1 . . . . . . . . . . Repair 2 | . . . . . . . . . 1 . 1 . . . . . . . . . . Recycling Unit Hacks 10 | . 2 . . . . . . . 1 . 2 . 1 . . . 3 . 1 . . Process 1 | . . . . . . . . . . . . . . . . . 1 . . . . Report Inventory 6 | . 1 . . . . . . . 1 . 1 . 1 . . . 1 . 1 . . Retrieve Matter 2 | . . . . . . . . . . . 1 . . . . . 1 . . . . Retrieve Components 1 | . 1 . . . . . . . . . . . . . . . . . . . . Scanalyzer 4 | . . . . . . 2 . . 2 . . . . . . . . . . . . Insert Component 2 | . . . . . . 1 . . 1 . . . . . . . . . . . . Analyze 2 | . . . . . . 1 . . 1 . . . . . . . . . . . . Garrison Access Hacks 1 | . . . . . . . . . . . . . . . . 1 . . . . . Seal Access 1 | . . . . . . . . . . . . . . . . 1 . . . . . Unauthorized Hacks 1 | . . 1 . . . . . . . . . . . . . . . . . . . Terminals 1 | . . 1 . . . . . . . . . . . . . . . . . . . Sabotage 1 | . . 1 . . . . . . . . . . . . . . . . . . . Fabricators . | . . . . . . . . . . . . . . . . . . . . . . Repair Stations . | . . . . . . . . . . . . . . . . . . . . . . Recycling Units . | . . . . . . . . . . . . . . . . . . . . . . Scanalyzers . | . . . . . . . . . . . . . . . . . . . . . . Garrison Access . | . . . . . . . . . . . . . . . . . . . . . . Data Cores Recovered . | . . . . . . . . . . . . . . . . . . . . . . Used . | . . . . . . . . . . . . . . . . . . . . . . Hacking Detections 39 | . 4 . . . 2 2 . . 4 . 5 . 2 . . 5 4 3 3 . 5 Full Trace Events 4 | . . . . . . 1 . . 1 . 1 . . . . . . . . . 1 Feedback Events . | . . . . . . . . . . . . . . . . . . . . . . Feedback Blocked . | . . . . . . . . . . . . . . . . . . . . . . Robot Schematics Acquired . | . . . . . . . . . . . . . . . . . . . . . . Robots Built . | . . . . . . . . . . . . . . . . . . . . . . Authchips . | . . . . . . . . . . . . . . . . . . . . . . Time . | . . . . . . . . . . . . . . . . . . . . . . Total Robot Build Rating . | . . . . . . . . . . . . . . . . . . . . . . Part Schematics Acquired 3 | . . . . . . 2 . . 1 . . . . . . . . . . . . Parts Built 3 | . . . . . . 1 . . . . 2 . . . . . . . . . . Authchips . | . . . . . . . . . . . . . . . . . . . . . . Time 72 | . . . . . . 36 . . . . 36 . . . . . . . . . . Total Part Build Rating 9 | . . . . . . 3 . . . . 6 . . . . . . . . . . Parts Repaired 2 | . . . . . . . . . 1 . 1 . . . . . . . . . . Time 89 | . . . . . . . . . 35 . 54 . . . . . . . . . . Parts Recycled . | . . . . . . . . . . . . . . . . . . . . . . Recycled Matter 1539 | . . . . . . . . . . . . . . . . . 1539 . . . . Retrieved Matter 1539 | . . . . . . . . . . . . . . . . . 1539 . . . . Retrieved Components 3 | . 3 . . . . . . . . . . . . . . . . . . . . Parts Scanalyzed 2 | . . . . . . 1 . . 1 . . . . . . . . . . . . Part Schematics Acquired 2 | . . . . . . 1 . . 1 . . . . . . . . . . . . Parts Damaged . | . . . . . . . . . . . . . . . . . . . . . . Bothacking | -11 -10 -10 -10 -9 -8 -7 -7 -7 -6 -6 -5 -4 -4 -4 -4 -4 -3 -3 -2 -2 -1 ------------ Run | Yrd Mat Min Exi Min Mat Fac Low Low Fac DSF Fac Fac Ext Cet Arc Hub Res Arm Res DSF Acc Used RIF Installer . | . . . . . . . . . . . . . . . . . . . . . . Robots Hacked 1 | . . . . . . . . . . . . . 1 . . . . . . . . Non-combat . | . . . . . . . . . . . . . . . . . . . . . . Combat 1 | . . . . . . . . . . . . . 1 . . . . . . . . Robot Hacks Applied 1 | . . . . . . . . . . . . . 1 . . . . . . . . parse_system 1 | . . . . . . . . . . . . . 1 . . . . . . . . Relay Couplers Released . | . . . . . . . . . . . . . . . . . . . . . . Fabnet Peak Effective % . | . . . . . . . . . . . . . . . . . . . . . . Robots Rewired 18 | . . . 4 . . . . . . . . . 12 . . . . 2 . . . Allies Hacked 1 | . . . . . . . . . . . . . 1 . . . . . . . . Hacks Repelled . | . . . . . . . . . . . . . . . . . . . . . . Allies | -11 -10 -10 -10 -9 -8 -7 -7 -7 -6 -6 -5 -4 -4 -4 -4 -4 -3 -3 -2 -2 -1 -------- Run | Yrd Mat Min Exi Min Mat Fac Low Low Fac DSF Fac Fac Ext Cet Arc Hub Res Arm Res DSF Acc Total Allies 36 | . . 4 4 . . . . . . . . . 18 5 . . 3 2 . . . Largest Group 13 | . . 3 6 6 . . . . . . . . 9 13 13 . 3 2 . . . Highest-Rated Group 930 | . . 55 105 82 . . . . . . . . 496 930 930 . 138 136 . . . Highest-Rated Ally 159 | . . 31 31 21 . . . . . . . . 159 152 152 . 46 89 . . . Total Orders . | . . . . . . . . . . . . . . . . . . . . . . Ally Attacks 282 | . . 29 9 15 . . . . . . . . 79 27 40 . 17 66 . . . Total Damage 8159 | . . 305 108 253 . . . . . . . . 2603 761 2033 . 456 1640 . . . Kills 45 | . . 6 . 2 . . . . . . . . 10 4 7 . 1 15 . . . Allies Corrupted 1 | . . . . 1 . . . . . . . . . . . . . . . . . Allies Melted . | . . . . . . . . . . . . . . . . . . . . . . Intel | -11 -10 -10 -10 -9 -8 -7 -7 -7 -6 -6 -5 -4 -4 -4 -4 -4 -3 -3 -2 -2 -1 ------- Run | Yrd Mat Min Exi Min Mat Fac Low Low Fac DSF Fac Fac Ext Cet Arc Hub Res Arm Res DSF Acc Robot Analysis Total 1 | . . . . . . . . . . . . . . . . . . 1 . . . Derelict Logs Recovered 2 | . . . . 1 . . . 1 . . . . . . . . . . . . . Drone Launches . | . . . . . . . . . . . . . . . . . . . . . . Drone Recoveries . | . . . . . . . . . . . . . . . . . . . . . . Exploration | -11 -10 -10 -10 -9 -8 -7 -7 -7 -6 -6 -5 -4 -4 -4 -4 -4 -3 -3 -2 -2 -1 ------------- Run | Yrd Mat Min Exi Min Mat Fac Low Low Fac DSF Fac Fac Ext Cet Arc Hub Res Arm Res DSF Acc Turns Passed 7058 | 93 285 554 601 178 197 665 904 163 197 61 374 93 523 407 79 442 456 381 58 39 308 Spaces Moved 8709 | 60 196 395 478 344 288 827 680 453 319 73 884 112 712 312 128 409 423 510 168 66 872 Core 216 | 2 . . . . . 1 . . . . . . . . 1 141 71 . . . . Treads . | . . . . . . . . . . . . . . . . . . . . . . Legs 1149 | 58 196 395 478 8 . . . . . . . . . . 1 13 . . . . . Wheels . | . . . . . . . . . . . . . . . . . . . . . . Hover 657 | . . . . . . . . . . . . . . . . 255 322 80 . . . Flight 6687 | . . . . 336 288 826 680 453 319 73 884 112 712 312 126 . 30 430 168 66 872 Fastest Speed 21 | 50 120 120 120 32 26 26 26 26 23 30 24 21 21 29 34 50 50 31 34 25 25 Average Speed 43 | 117 120 120 120 34 26 26 26 26 28 30 26 22 26 33 34 76 54 37 34 35 25 Slowest Speed 250 | 120 120 120 120 120 32 100 26 26 30 30 30 24 32 34 120 130 200 250 34 40 29 Overloaded Moves . | . . . . . . . . . . . . . . . . . . . . . . Propulsion Burnouts . | . . . . . . . . . . . . . . . . . . . . . . Robots Hopped 30 | . . . . 1 . 3 . . . . 4 . 3 . . . . . 1 1 17 Cave-ins Triggered . | . . . . . . . . . . . . . . . . . . . . . . Exploration Rate (%) 43 | 4 37 85 91 53 25 20 72 48 7 51 22 5 75 79 85 38 16 36 6 85 23 Regions Visited 21 Branch Regions 10 Pre-discovered Areas . | . . . . . . . . . . . . . . . . . . . . . . Known Exits Taken 13 | . . . . . . 1 1 1 1 . 1 1 1 1 1 1 1 1 1 . . Unknown Exits Taken 6 | 1 1 1 1 1 1 . . . . . . . . . . . . . . . . Scrap Searched 5 | . . 2 . . . . . 3 . . . . . . . . . . . . . Spaces Dug 18 | . . . . . 6 1 . . 7 . 2 . 1 . . . . . . . 1 Terrain Destroyed 326 | . . . . 64 6 1 34 . 7 . 2 2 14 67 . 63 2 32 . 31 1 Melee 11 | . . . . . . 1 . . 7 . 2 . 1 . . . . . . . . Projectile 24 | . . . . . 6 . . . . . . 2 2 3 . . 2 8 . . 1 AOE 291 | . . . . 64 . . 34 . . . . . 11 64 . 63 . 24 . 31 . Terrain Rammed . | . . . . . . . . . . . . . . . . . . . . . . Walls Destroyed . | . . . . . . . . . . . . . . . . . . . . . . Machines Disabled . | . . . . . . . . . . . . . . . . . . . . . . Actions | -11 -10 -10 -10 -9 -8 -7 -7 -7 -6 -6 -5 -4 -4 -4 -4 -4 -3 -3 -2 -2 -1 --------- Run | Yrd Mat Min Exi Min Mat Fac Low Low Fac DSF Fac Fac Ext Cet Arc Hub Res Arm Res DSF Acc Total 11611 | 71 239 442 506 382 384 1257 1399 497 411 112 1005 160 1012 597 162 528 630 649 167 74 927 Wait 2351 | . 24 17 . 9 76 387 715 45 54 . 95 34 202 272 32 102 171 61 1 1 53 Move 8629 | 59 195 394 477 341 287 820 679 452 318 72 875 111 705 311 127 408 422 509 165 63 839 Hop 28 | . . . . 1 . 3 . . . . 4 . 3 . . . . . 1 1 15 Pick Up 42 | 1 8 2 1 . 4 3 . . 2 2 2 2 5 1 1 2 3 3 . . . Fast Attach 70 | 7 2 1 1 4 . 8 . . 2 . 9 2 3 . 1 5 9 8 . 5 3 Attach 38 | . . . 1 2 4 3 . . 3 . 2 1 3 1 . 3 6 4 . 1 4 Detach 27 | . 2 . . 1 . 3 . . . . 2 . 2 . . 1 6 7 . 1 2 Swap 47 | . . . . 5 3 9 2 . 4 . 1 . 11 2 . . . 8 . . 2 Drop 58 | . 3 3 2 4 1 11 . . 3 2 5 1 7 1 1 1 3 10 . . . Fire 165 | 4 5 21 . 15 9 4 3 . . . 3 9 23 6 . 6 9 37 . 2 9 Melee 54 | . . . . . . 6 . . 7 . 7 . 29 3 . . . 2 . . . Ram 1 | . . . . . . . . . . . . . . . . . 1 . . . . Kick 4 | . . 4 . . . . . . . . . . . . . . . . . . . Crush . | . . . . . . . . . . . . . . . . . . . . . . Escape Stasis 73 | . . . . . . . . . 18 36 . . 19 . . . . . . . . Rewire 24 | . . . 24 . . . . . . . . . . . . . . . . . . Trap . | . . . . . . . . . . . . . . . . . . . . . . Miscellaneous . | . . . . . . . . . . . . . . . . . . . . . . Route ------- -11/Scrapyard -10/Materials -10/Mines (discovered 2 exits: [*Mat] / *Exi) -10/Exiles (discovered 2 exits: [*Min x2]) -9/Mines -8/Materials -7/Factory (discovered 2 exits: *Low x2) -7/Lower Caves -7/Lower Caves -6/Factory -6/DSF -5/Factory -4/Factory -4/Extension (discovered 2 exits: *Res / *Cet) -4/Cetus (discovered 2 exits: *Res / *Arc) -4/Archives (discovered 3 exits: *Res / *Hub x2) -4/Hub_04(d) -3/Research (discovered 6 exits: Res x3 / *Arm / Tes x2) -3/Armory (discovered 2 exits: *Res x2) -2/Research -2/DSF -1/Access To Epsilon Eridani History --------- Turn | Location | Event 17 | -11/Scrapyard | Discovered new exit (range 16) 94 | -11/Scrapyard | Entered Materials 285 | -10/Materials | Discovered new exit (range 12) 318 | -10/Materials | Build established: Mutant 379 | -10/Materials | Entered Mines 534 | -10/Mines | A weapon hastily lodged in a ceiling crevice suddenly fell to the ground 675 | -10/Mines | Assisted by bots powering up and referring to "LRC-V3" 698 | -10/Mines | Discovered new exit (range 10) 854 | -10/Mines | Received a Mining Laser from a helpful Derelict 905 | -10/Mines | Received a Rocket Launcher from a helpful Derelict 925 | -10/Mines | Deemed a non-threat by the Exiles lab entrance 926 | -10/Mines | Discovered new exit (range 5) 933 | -10/Mines | Entered Exiles 933 | -10/Exiles | Found Exiles lab destroyed 933 | -10/Exiles | Accompanied by 3 allies 953 | -10/Exiles | Discovered new exit (range 15) 1330 | -10/Exiles | Build established: Commander-Mutant 1522 | -10/Exiles | Discovered new exit (range 10) 1534 | -10/Exiles | Entered Mines 1534 | -9/Mines | Accompanied by 6 allies 1535 | -9/Mines | Assembled infested the area 1587 | -9/Mines | Lost 6 allies 1651 | -9/Mines | Found a damaged Exp. Sensor Array with a note attached 1653 | -9/Mines | Found Prototype Device 1653 | -9/Mines | Identified Exp. Sensor Array 1708 | -9/Mines | Found a hidden stash of uninstalled traps 1710 | -9/Mines | Learned Materials stockpile data 1710 | -9/Mines | Discovered new exit (range 6) 1712 | -9/Mines | Entered Materials 1712 | -8/Materials | Evolved 4 slots: Propulsion x2, Utility x2 1904 | -8/Materials | Discovered new exit (range 12) 1909 | -8/Materials | Entered Factory 1909 | -7/Factory | Evolved 2 slots: Utility x2 2109 | -7/Factory | Identified exit to Lower Caves 2220 | -7/Factory | Fabricated Hacking Suite? 2540 | -7/Factory | Build established: Hacker-Sprinter 2574 | -7/Factory | Entered Lower Caves 3349 | -7/Lower Caves | Spotted B-75 Beast 3454 | -7/Lower Caves | Discovered new exit (range 13) 3459 | -7/Lower Caves | Identified exit to Lower Caves 3478 | -7/Lower Caves | Entered another Lower Caves area 3510 | -7/Lower Caves | Learned Factory emergency access door positions 3612 | -7/Lower Caves | Discovered new exit (range 4) 3613 | -7/Lower Caves | Identified exit to Factory 3641 | -7/Lower Caves | Entered Factory 3641 | -6/Factory | Evolved 2 slots: Propulsion x1, Utility x1 3792 | -6/Factory | Repaired Prc. Shock Rifle 3834 | -6/Factory | Identified exit to DSF 3838 | -6/Factory | Entered DSF 3896 | -6/DSF | Discovered new exit (range 11) 3899 | -6/DSF | Identified exit to Factory 3899 | -6/DSF | Entered Factory 3899 | -5/Factory | Evolved 2 slots: Power x1, Utility x1 3925 | -5/Factory | Lost 3 parts (2n1u) 4030 | -5/Factory | Fabricated Cesium-ion Thruster? 4103 | -5/Factory | Repaired Exp. Sensor Array 4180 | -5/Factory | Discovered new exit (range 13) 4212 | -5/Factory | Spotted B-75 Beast 4273 | -5/Factory | Identified exit to Factory 4273 | -5/Factory | Entered another Factory area 4273 | -4/Factory | Evolved 2 slots: Propulsion x1, Utility x1 4364 | -4/Factory | Discovered new exit (range 12) 4366 | -4/Factory | Identified exit to Extension 4366 | -4/Factory | Entered Extension 4568 | -4/Extension | Rescued a captive Derelict 4592 | -4/Extension | Rescued a captive Derelict 4624 | -4/Extension | Rescued A7 4709 | -4/Extension | Spotted B-86 Titan 4711 | -4/Extension | Spotted B-86 Titan 4746 | -4/Extension | Lost 3 parts (1n1u1w) 4760 | -4/Extension | Rescued a captive Derelict 4781 | -4/Extension | Energy Cycler disabled 4781 | -4/Extension | Rescued a captive Derelict 4784 | -4/Extension | Rescued a captive Derelict 4784 | -4/Extension | Rescued a captive Derelict 4784 | -4/Extension | Rescued a captive Derelict 4787 | -4/Extension | Rescued a captive Derelict 4788 | -4/Extension | Rescued a captive Derelict 4858 | -4/Extension | Discovered new exit (range 10) 4858 | -4/Extension | Discovered new exit (range 6) 4863 | -4/Extension | Identified exit to Cetus 4889 | -4/Extension | Entered Cetus 4889 | -4/Cetus | Accompanied by 9 allies (A7) 4894 | -4/Cetus | Acquired a Cetus Manufacturing Module code from A7 4902 | -4/Cetus | Spotted Cetus Guard 4905 | -4/Cetus | Spotted Cetus Guard 4905 | -4/Cetus | Spotted Cetus Guard 4906 | -4/Cetus | Spotted Cetus Guard 4918 | -4/Cetus | Allies destroyed Cetus Guard 4920 | -4/Cetus | Allies destroyed Cetus Guard 4922 | -4/Cetus | Allies destroyed Cetus Guard 4924 | -4/Cetus | Allies destroyed Cetus Guard 4953 | -4/Cetus | Lost 4 parts (1p2n1w) 4971 | -4/Cetus | Escorted A7 to Cetus Mainframe 4975 | -4/Cetus | Started Cetus Manufacturing Module 5000 | -4/Cetus | Manufactured an Enhanced Grunt 5025 | -4/Cetus | Manufactured an Enhanced Grunt 5050 | -4/Cetus | Manufactured an Enhanced Grunt 5075 | -4/Cetus | Manufactured an Enhanced Grunt 5079 | -4/Cetus | Discovered new exit (range 16) 5084 | -4/Cetus | Identified exit to Research 5100 | -4/Cetus | Manufactured an Enhanced Grunt 5256 | -4/Cetus | Discovered new exit (range 16) 5260 | -4/Cetus | Identified exit to Archives 5296 | -4/Cetus | Entered Archives 5296 | -4/Archives | Accompanied by 13 allies (A7) 5301 | -4/Archives | Received a hacking code to weaken MAIN.C 5302 | -4/Archives | Met Zhirov 5305 | -4/Archives | Unable to access archive contents 5308 | -4/Archives | Reinforcements dispatched to Archives 5310 | -4/Archives | Unable to access archive contents 5311 | -4/Archives | Discovered new exit (range 13) 5316 | -4/Archives | Identified exit to Hub_04(d) 5326 | -4/Archives | Read partially decrypted archive contents 5326 | -4/Archives | Read partially decrypted archive contents 5327 | -4/Archives | Read partially decrypted archive contents 5328 | -4/Archives | Discovered exit to Hub_04(d) (range 13) 5337 | -4/Archives | Discovered exit to Research (range 15) 5353 | -4/Archives | Reinforcements dispatched to Archives 5364 | -4/Archives | Lost 5 allies 5373 | -4/Archives | Zhirov detonated Archives 5375 | -4/Archives | Entered Hub_04(d) 5381 | -4/Hub_04(d) | Core integrity fell below 50% 5392 | -4/Hub_04(d) | Discovered exit to Research (range 10) 5404 | -4/Hub_04(d) | Lost 6 parts (1p2n1u2w) 5404 | -4/Hub_04(d) | Lost 7 allies 5629 | -4/Hub_04(d) | Build established: Hacker-Mutant 5776 | -4/Hub_04(d) | Lost 3 parts (1p1u1w) 5817 | -4/Hub_04(d) | Entered Research 5817 | -3/Research | Evolved 2 slots: Utility x1, Weapon x1 5853 | -3/Research | Allied Derelicts emerged from ambush trap array 5868 | -3/Research | Found Prototype Protection 5868 | -3/Research | Identified Centrium Heavy Armor Plating 5888 | -3/Research | Found Prototype Processor 5888 | -3/Research | Identified Exp. Target Analyzer 6118 | -3/Research | Build established: Hacker-Scout 6152 | -3/Research | Spotted B-86 Titan 6157 | -3/Research | Spotted B-86 Titan 6200 | -3/Research | Allies destroyed B-86 Titan 6247 | -3/Research | Discovered new exit (range 6) 6249 | -3/Research | Lost 3 allies 6250 | -3/Research | Identified exit to Armory 6255 | -3/Research | Identified exit to Testing 6255 | -3/Research | Identified exit to Research 6273 | -3/Research | Entered Armory 6389 | -3/Armory | Found Gamma Bomb Array 6540 | -3/Armory | Found Fusion Bomb Launcher 6542 | -3/Armory | Found Fusion Bomb Launcher 6654 | -3/Armory | Entered Research 6654 | -2/Research | Evolved 2 slots: Propulsion x2 6663 | -2/Research | Spotted B-90 Cyclops 6676 | -2/Research | Lost 3 parts (1n2u) 6712 | -2/Research | Identified exit to DSF 6712 | -2/Research | Entered DSF 6737 | -2/DSF | Discovered new exit (range 16) 6739 | -2/DSF | Additional patrols routed to DSF 6750 | -2/DSF | Identified exit to Access 6751 | -2/DSF | Entered Access 6751 | -1/Access | Evolved 2 slots: Power x1, Weapon x1 6754 | -1/Access | Lost 4 parts (1p2n1w) 6839 | -1/Access | Identified exit to Surface 6912 | -1/Access | Spotted B-99 Colossus 6912 | -1/Access | Spotted B-99 Colossus 7020 | -1/Access | Build established: Hacker-Sprinter 7059 | *** | Escaped! Last Messages --------------- Penetrated by Slug. Slug penetrates Wall. Slug penetrates Earth. Penetrated by Slug. Adv. Hacking Suite destroyed. Fusion Bomb Launcher destroyed. Field Propulsion Array destroyed. Critical hit (Blast). Knocked back. Slug penetrates Wall. Acquired 8 matter. Slug penetrates Wall. Enh. Quantum Rifle destroyed. Connecting with Terminal... >>Open(Door) Sealed Barrier opened. ALERT: Suspicious activity at Terminal A001. Dispatching Investigation squad. The Access Shell folds into the floor. [Achievement: Epsilon Run] Map ----- +----------------------------------------------------+ | ????????# #?????????????# ] ## | | ????????# #??????????#### ## | | ????????# ############"## ## | | ????????# # ## = | | ######### # ## | | # % # !! ## | | # + ! ## | | # ########## # ## | | " # #????????# " ########## | | """ # #??????#"# ##############????????? | | """ # #?????# ????????????????????? | | " + #?????# ???????????????????? | | ! # #?????# #??????????????????? | | # #?????# #??????????????????? | | # #?????# #??????????????????? | | # #?????# #??????????????????? | | +######## #?????# #??????????????????? | | #?# #?????#"" """""#??????????????????? | | #?# #???????"""""???????????????????????? | | "# #???????????????????????????????????? | | """ ""# #?????#""""""""""#??????????????????? | | """ ""# #?????# #??????????????????? | | R" ""# #?????# #??????????????????? | | """ ""# #?????# #??????????????????? | | "" T"# #?????# "" #??????????????????? | | ""# #?????# "@ #??????????????????? | | ""# #?????# #??????????????????? | | ""# #?????# #??????????????????? | | ""# #?????# #??????????????????? | | "# #????## ##?????????????????? | | ### #????# #?????????????????? | | ! #????##"" ##?????????????????? | | #?????#"" #??????????????????? | | ##### #?????#"" #??????????????????? | | ????# #?????#T #??????????????????? | | ??????# #?????#"" t #??????????????????? | | ????????# #?????#"" #??????????????????? | | ?????????# #######"" ###??????????????##+ | | ??????????# ? | | ??????????# | | ??????????#########################+#####???????#+ | | ?????????????????????????????????????????????????? | | ?????????????????????????????????????????????????? | | ?????????????????????????????????????????????????? | | ?????????????????????????????????????????????????? | | ?????????????????????????????????????????????????? | | ?????????????????????????????????????????????????? | | ?????????????????????????????????????????????????? | | ?????????????????????????????????????????????????? | | ?????????????????????????????????????????????????? | +----------------------------------------------------+ Best States ------------- Heat Dissipation 71 Energy Generation 45 Energy Capacity 480 Matter Stores 300 Matter Capacity 300 Sight Range 20 Robot Scan Range 20 Terrain Scan Density 10 ECM Strength 2 Jamming Range 16 Additional Mass Support 9 Evasion (%) 65 Targeting Accuracy 8 Target Analysis 10 Offensive Hacking 44 Defensive Hacking 11 Item Schematics ----------------- Hacking Suite | -7/Factory | Hacked Cesium-ion Thruster | -7/Factory | Scanalyzed Lgt. Deuterium Engine | -6/Factory | Scanalyzed Robot Schematics ------------------ None Fabricated ------------ Hacking Suite | x1 | -7/Factory Cesium-ion Thruster | x2 | -5/Factory Alien Tech Used ----------------- None Achievements -------------- Epsilon Run Explorer Challenges ------------ None Game ------ Seed CargoWeldingLoader Manual? 0 Play Time 02:41:41 Cumulative 40.0 hours Start 2024.04.16 @ 15:52:11 End 2024.04.16 @ 18:40:52 Sessions 1 Manual Loads 0 Difficulty Rogue Special Mode None Game No. 27 Rogue 27 Adventurer 0 Explorer 0 Win Type 0 Total 1 Types 1/0/0/0/0/0/0/0/0 Lore% 27 Gallery% 41 Achievement% 33 Wizard Run 0 Options --------- Layout 1 ASCII 0 Keyboard 1 Movement Numpad Keybinds 0 Fullscreen 1 Font 32/SmallcapsGlow Map View 77x35 Zoom Use 0% Tactical HUD 0 Map Filters NONE Filters NONE Steam 1 RUN: cd5a816c-327f-4fc1-b0cb-343d271e7e72